fUST/lending_fUST_20260428
["ID","MTS","AMOUNT","RATE_DAILY","PERIOD"]
[421282109,1777332727575,500.0,0.0002517,120]
[421282110,1777332823248,4500.0,0.00011,30]
[421282111,1777333547137,-483.0030996,0.00011879,2]
[421282112,1777333547161,-300.0,0.00011999,2]
[421282113,1777333547183,-1200.0,0.00011999,2]
[421282114,1777333547206,-150.0,0.00011999,2]
[421282115,1777333547226,-13563.55744169,0.00012,2]
[421282116,1777333598105,-500.0,8.219e-05,2]
[421282117,1777333598127,-1536.59683556,0.00012,2]
[421282118,1777333633200,-164.02140775,0.00012,2]
[421282119,1777333633221,-244.68844684,0.00012,2]
[421282120,1777333682155,27285.0,0.0002514,120]
[421282121,1777333763068,-590.0,0.00012066,2]
[421282122,1777333763090,-150.0,0.00012066,2]
[421282123,1777333763112,-273.33078071,0.00012132,14]
[421282151,1777333838602,-26.66921929,0.00012132,14]
[421282152,1777333838611,-180.65664469,0.00013365,14]
[421282153,1777333838621,-1000.0,0.00013699,2]
[421282154,1777333838630,-615.0,0.00013699,2]
[421282155,1777333838639,-177.0,0.00014066,2]
[421282156,1777333838648,-204.0,0.00016066,2]
[421282157,1777333838657,-151.4811645,0.00017659,2]
[421282158,1777333838666,-325.5033173,0.00017663,2]
[421282159,1777333838676,-151.4642633,0.00017663,2]
[421282160,1777333838686,-160.0,0.00017966,2]
[421282161,1777333838695,-231.0,0.00018066,2]
[421282162,1777333838704,-1962.2264262,0.00018104,2]
[421282163,1777333838713,-1405.37536216,0.0001811,2]
[421282164,1777333838722,-300.0,0.00018165,2]
[421282165,1777333838732,-9863.06717446,0.00018166,2]
[421282166,1777333838741,-48563.77212533,0.00018166,2]
[421282167,1777333838751,-537.6845,0.0001821,2]
[421282168,1777333838760,-2150.738,0.0001821,2]
[421282169,1777333838769,-500.0,0.00018229,2]
[421282170,1777333838778,-500.0,0.00018229,2]
[421282171,1777333838787,-500.0,0.00018229,2]
[421282172,1777333838796,-566.14857588,0.00018229,2]
[421282173,1777333838806,-500.0,0.00018229,2]
[421282174,1777333838815,-500.0,0.00018229,2]
[421282175,1777333838824,-523.12383742,0.00018229,2]
[421282176,1777333838834,-500.0,0.00018229,2]
[421282177,1777333838843,-441.24107985,0.00018229,2]
[421282178,1777333838851,-1010.1352458,0.00018231,2]
[421282179,1777333838860,-557.5788265,0.00018265,2]
[421282180,1777333838870,-1405.37536212,0.00018366,2]
[421282181,1777333838879,-500.0,0.00018479,2]
[421282182,1777333838888,-500.0,0.00018479,2]
[421282183,1777333838897,-794.46917423,0.00018479,2]
[421282184,1777333838907,-325.5033173,0.00018501,2]
[421282185,1777333838916,-151.0,0.00018501,2]
[421282186,1777333838925,-1405.37536212,0.00018621,2]
[421282187,1777333838934,-152.0,0.0001869,7]
[421282188,1777333838943,-152.0,0.00018708,7]
[421282189,1777333838952,-3525.7162215,0.00018713,2]
[421282190,1777333838961,-2211.0,0.00018742,2]
[421282191,1777333838970,-217.856,0.00018742,2]
[421282192,1777333838979,-154.489,0.00018742,2]
[421282193,1777333838989,-2150.738,0.00018758,2]
[421282194,1777333839000,-166.62,0.00018759,2]
[421282195,1777333839009,-1405.37536212,0.00018877,2]
[421282196,1777333839019,-32722.3247354,0.00018896,2]
[421282197,1777333839028,-345.36799669,0.00018995,2]
[421282198,1777333839037,-3183.16095481,0.00018995,2]
[421282199,1777333839046,-3183.16095481,0.00018995,2]
[421282200,1777333839056,-3183.16095481,0.00018995,2]
[421282201,1777333839066,-3183.16095481,0.00018995,2]
[421282202,1777333839076,-3183.16095481,0.00018995,2]
[421282203,1777333839086,-3183.16095481,0.00018995,2]
[421282204,1777333839095,-3183.16095481,0.00018995,2]
[421282205,1777333839104,-3183.16095481,0.00018995,2]
[421282206,1777333839114,-3183.16095481,0.00018995,2]
[421282207,1777333839125,-3183.16095481,0.00018995,2]
[421282208,1777333839135,-3183.16095481,0.00018995,2]
[421282209,1777333839144,-3183.16095481,0.00018995,2]
[421282210,1777333839155,-3183.16095481,0.00018995,2]
[421282211,1777333839165,-3183.16095481,0.00018995,2]
[421282212,1777333839175,-3183.16095481,0.00018995,2]
[421282213,1777333839185,-3183.16095481,0.00018995,2]
[421282214,1777333839194,-1291.43136894,0.00018995,2]
[421282215,1777333839207,-282.70985953,0.00018995,2]
[421282220,1777333840932,-682.41921033,0.00018995,2]
[421282375,1777333846870,-288.1998608,0.00018859,2]
[421282377,1777333846879,-926.60051601,0.00018995,2]
[421282379,1777333846887,-529.25197942,0.00018995,2]
[421282381,1777333846899,-2653.90897539,0.00018995,2]
[421282383,1777333846907,-2945.06973619,0.00018995,2]
[421282397,1777333847196,-238.09121862,0.00018995,2]
[421282398,1777333847206,-3183.16095481,0.00018995,2]
[421282399,1777333847215,-3183.16095481,0.00018995,2]
[421282400,1777333847224,-32.56487712,0.00018995,2]
[421282427,1777334816117,-150.0,0.00010925,2]
[421282428,1777334816140,-72.27188156,0.00010925,2]
[421282431,1777334849236,9500.0,0.00025215,120]
[421282436,1777334953072,-589.0,0.00011999,2]
[421282437,1777334953094,-150.0,0.00011999,2]
[421282438,1777334953114,-282.07166214,0.00012,2]
[421282440,1777334961135,-1824.00681439,0.00012,2]
[421282462,1777335032535,-385.82745404,0.000119,2]
[421282463,1777335032545,-129.84986726,0.00012,2]
[421282464,1777335032589,-299.15700718,0.00012,2]
[421282473,1777335040163,-2200.73896403,0.00012,2]
[421282474,1777335040172,-589.0,0.00012,2]
[421282475,1777335040181,-1035.51870942,0.00013,2]
[421282476,1777335040190,-510.0,0.00013698,2]
[421282477,1777335040200,-1000.0,0.00013699,2]
[421282478,1777335040209,-160.0,0.00013847,2]
[421282479,1777335040218,-160.0,0.00013847,2]
[421282480,1777335040227,-177.0,0.00014,2]
[421282481,1777335040236,-204.0,0.00016,2]
[421282482,1777335040246,-300.0,0.00017999,2]
[421282483,1777335040255,-231.0,0.00018,2]
[421282484,1777335040264,-6822.09,0.00018,2]
[421282485,1777335040274,-537.6845,0.00018143,2]
[421282486,1777335040283,-2150.738,0.00018143,2]
[421282487,1777335040292,-557.5788265,0.00018198,2]
[421282488,1777335040301,-578.20924308,0.00018253,2]
[421282489,1777335040310,-599.60298507,0.00018308,2]
[421282490,1777335040319,-621.78829552,0.00018363,2]
[421282491,1777335040329,-1274.25255709,0.00018375,2]
[421282492,1777335040338,-367.73123139,0.00018377,2]
[421282493,1777335040347,-2681.68432527,0.00018377,2]
[421282494,1777335040356,-2681.68432527,0.00018377,2]
[421282495,1777335040365,-2681.68432527,0.00018377,2]
[421282496,1777335040375,-2681.68432527,0.00018377,2]
[421282497,1777335040385,-2681.68432527,0.00018377,2]
[421282498,1777335040394,-2681.68432527,0.00018377,2]
[421282499,1777335040403,-2681.68432527,0.00018377,2]
[421282500,1777335040412,-2681.68432527,0.00018377,2]
[421282501,1777335040421,-2681.68432527,0.00018377,2]
[421282502,1777335040430,-2681.68432527,0.00018377,2]
[421282503,1777335040439,-2681.68432527,0.00018377,2]
[421282504,1777335040448,-2681.68432527,0.00018377,2]
[421282505,1777335040458,-2681.68432527,0.00018377,2]
[421282506,1777335040467,-2681.68432527,0.00018377,2]
[421282507,1777335040476,-544277.29706945,0.00018378,2]
[421282508,1777335040486,-10179.75242117,0.00018379,2]
[421282509,1777335040496,-644.79446246,0.00018418,2]
[421282510,1777335040505,-445.202766,0.00018468,2]
[421282511,1777335040514,-537.6845,0.00018468,2]
[421282512,1777335040523,-668.65185757,0.00018473,2]
[421282513,1777335040532,-500.0,0.00018479,2]
[421282514,1777335040542,-293733.37542724,0.00018479,2]
[421282515,1777335040553,-50325.4305513,0.00018479,2]
[421282516,1777335040563,-693.3919763,0.00018528,2]
[421282517,1777335040571,-719.04747942,0.00018583,2]
[421282518,1777335040581,-745.65223616,0.00018638,2]
[421282519,1777335040591,-3190.02519755,0.00018675,2]
[421282520,1777335040600,-2230.315306,0.00018691,2]
[421282521,1777335040609,-773.2413689,0.00018693,2]
[421282522,1777335040618,-500.0,0.00018753,2]
[421282523,1777335040627,-23374.93541907,0.00018798,2]
[421282524,1777335040636,-645.0,0.00018805,2]
[421282525,1777335040645,-1409.0,0.00018805,2]
[421282526,1777335040654,-2211.0,0.00018805,2]
[421282527,1777335040664,-302.489,0.00018805,2]
[421282528,1777335040673,-442.0,0.00018805,2]
[421282529,1777335040682,-168.034,0.00018812,2]
[421282530,1777335040691,-201.63906007,0.00018895,2]
[421282531,1777335040701,-201.63906006,0.00018895,2]
[421282532,1777335040710,-500.0,0.00018897,2]
[421282533,1777335040719,-500.0,0.00018897,2]
[421282534,1777335040728,-500.0,0.00018897,2]
[421282535,1777335040737,-500.0,0.00018897,2]
[421282536,1777335040746,-500.0,0.00018897,2]
[421282537,1777335040755,-500.0,0.00018897,2]
[421282538,1777335040767,-175.5350746,0.00018909,2]
[421282540,1777335040776,-7802.4312248,0.00018909,2]
[421282542,1777335040785,-488.38362578,0.00018995,2]
[421282543,1777335040794,-151.0,0.00018995,2]
[421282545,1777335040802,-151.0,0.00018995,2]
[421282547,1777335040811,-151.0,0.00018995,2]
[421282548,1777335040820,-151.0,0.00018995,2]
[421282549,1777335040829,-151.68053369,0.00018995,2]
[421282550,1777335040838,-500.0,0.00018996,2]
[421282551,1777335040847,-500.0,0.00018996,2]
[421282552,1777335040856,-500.0,0.00018996,2]
[421282553,1777335040865,-500.0,0.00018996,2]
[421282554,1777335040873,-500.0,0.00018996,2]
[421282555,1777335040882,-500.0,0.00018996,2]
[421282556,1777335040891,-500.0,0.00018996,2]
[421282557,1777335040900,-500.0,0.00018996,2]
[421282558,1777335040909,-500.0,0.00018996,2]
[421282559,1777335040918,-500.0,0.00018996,2]
[421282560,1777335040927,-500.0,0.00018996,2]
[421282561,1777335040936,-500.0,0.00018996,2]
[421282562,1777335040945,-155.0,0.00018997,2]
[421282563,1777335040954,-500.0,0.00018997,2]
[421282564,1777335040964,-500.0,0.00018997,2]
[421282565,1777335040973,-500.0,0.00018997,2]
[421282566,1777335040982,-500.0,0.00018997,2]
[421282567,1777335040991,-500.0,0.00018997,2]
[421282568,1777335041000,-411.19,0.00018997,2]
[421282569,1777335041010,-500.0,0.00018997,2]
[421282570,1777335041019,-500.0,0.00018997,2]
[421282571,1777335041028,-500.0,0.00018997,2]
[421282572,1777335041037,-500.0,0.00018997,2]
[421282573,1777335041047,-500.0,0.00018997,2]
[421282574,1777335041056,-500.0,0.00018997,2]
[421282575,1777335041065,-104907.64051013,0.00018998,2]
[421282576,1777335041075,-500.0,0.00018998,2]
[421282577,1777335041084,-1038.92087731,0.00018998,2]
[421282578,1777335041094,-461.67526834,0.00019016,2]
[421282579,1777335041103,-557.5788265,0.00019016,2]
[421282580,1777335041112,-739.87085817,0.00019063,2]
[421282581,1777335041122,-5105.797838,0.00019075,2]
[421282582,1777335041131,-151.5,0.00019177,2]
[421282583,1777335041141,-198.5,0.00019177,2]
[421282585,1777335041151,-500.0,0.00019177,2]
[421282586,1777335041160,-500.0,0.00019177,2]
[421282587,1777335041169,-500.0,0.00019177,2]
[421282588,1777335041179,-500.0,0.00019177,2]
[421282589,1777335041188,-500.0,0.00019177,2]
[421282590,1777335041197,-500.0,0.00019177,2]
[421282591,1777335041207,-500.0,0.00019177,2]
[421282592,1777335041216,-169.5,0.00019177,2]
[421282593,1777335041225,-261.04495079,0.00019178,2]
[421282594,1777335041234,-500.0,0.00019178,2]
[421282595,1777335041243,-370.25041831,0.00019178,2]
[421282596,1777335041252,-500.0,0.00019178,2]
[421282597,1777335041262,-500.0,0.00019178,2]
[421282598,1777335041272,-500.0,0.00019178,2]
[421282599,1777335041284,-500.0,0.00019178,2]
[421282600,1777335041295,-608.56,0.00019178,2]
[421282601,1777335041305,-500.0,0.00019178,2]
[421282602,1777335041314,-500.0,0.00019178,2]
[421282603,1777335041324,-500.0,0.00019178,2]
[421282604,1777335041333,-500.0,0.00019178,2]
[421282605,1777335041343,-3827.26,0.00019178,2]
[421282606,1777335041352,-500.0,0.00019178,2]
[421282607,1777335041362,-677.25,0.00019178,2]
[421282608,1777335041372,-500.0,0.00019178,2]
[421282609,1777335041381,-587.96,0.00019178,2]
[421282610,1777335041391,-500.0,0.00019178,2]
[421282611,1777335041400,-500.0,0.00019178,2]
[421282612,1777335041410,-500.0,0.00019178,2]
[421282613,1777335041419,-1237.43,0.00019178,2]
[421282614,1777335041428,-812.63,0.00019178,2]
[421282615,1777335041437,-500.0,0.00019178,2]
[421282616,1777335041446,-500.0,0.00019178,2]
[421282617,1777335041455,-500.0,0.00019178,2]
[421282618,1777335041464,-591.14,0.00019178,2]
[421282619,1777335041475,-500.0,0.00019178,2]
[421282620,1777335041484,-500.0,0.00019178,2]
[421282621,1777335041494,-500.0,0.00019178,2]
[421282622,1777335041503,-5306.51,0.00019178,2]
[421282623,1777335041512,-504.21,0.00019178,2]
[421282624,1777335041522,-617.20053043,0.00019178,2]
[421282625,1777335041531,-500.0,0.00019178,2]
[421282626,1777335041540,-500.0,0.00019178,2]
[421282627,1777335041549,-500.0,0.00019178,2]
[421282628,1777335041558,-500.0,0.00019178,2]
[421282629,1777335041568,-626.99,0.00019178,2]
[421282630,1777335041577,-569.95,0.00019178,2]
[421282631,1777335041587,-500.0,0.00019178,2]
[421282632,1777335041596,-500.0,0.00019178,2]
[421282633,1777335041605,-500.0,0.00019178,2]
[421282634,1777335041617,-500.0,0.00019178,2]
[421282635,1777335041626,-500.0,0.00019178,2]
[421282636,1777335041635,-500.0,0.00019178,2]
[421282637,1777335041644,-500.0,0.00019178,2]
[421282638,1777335041654,-500.0,0.00019178,2]
[421282639,1777335041663,-500.0,0.00019178,2]
[421282640,1777335041672,-576.75,0.00019178,2]
[421282641,1777335041681,-500.0,0.00019178,2]
[421282642,1777335041690,-500.0,0.00019178,2]
[421282643,1777335041699,-678.96,0.00019178,2]
[421282644,1777335041708,-500.0,0.00019178,2]
[421282645,1777335041718,-880.26,0.00019178,2]
[421282646,1777335041727,-1491.51,0.00019178,2]
[421282647,1777335041736,-989.21,0.00019178,2]
[421282648,1777335041745,-500.0,0.00019178,2]
[421282649,1777335041754,-532.4,0.00019178,2]
[421282650,1777335041764,-500.0,0.00019178,2]
[421282651,1777335041773,-795.75,0.00019178,2]
[421282652,1777335041784,-710.52,0.00019178,2]
[421282653,1777335041793,-500.0,0.00019178,2]
[421282654,1777335041803,-1280.96,0.00019178,2]
[421282655,1777335041812,-500.0,0.00019178,2]
[421282656,1777335041823,-500.0,0.00019178,2]
[421282657,1777335041832,-500.0,0.00019178,2]
[421282658,1777335041841,-1561.48,0.00019178,2]
[421282659,1777335041850,-500.0,0.00019178,2]
[421282660,1777335041859,-500.0,0.00019178,2]
[421282661,1777335041868,-1271.96,0.00019178,2]
[421282662,1777335041877,-500.0,0.00019178,2]
[421282663,1777335041886,-500.0,0.00019178,2]
[421282664,1777335041895,-500.0,0.00019178,2]
[421282665,1777335041904,-500.0,0.00019178,2]
[421282666,1777335041914,-500.0,0.00019178,2]
[421282667,1777335041923,-1656.51,0.00019178,2]
[421282668,1777335041932,-500.0,0.00019178,2]
[421282669,1777335041942,-615.44,0.00019178,2]
[421282670,1777335041951,-500.0,0.00019178,2]
[421282671,1777335041960,-500.0,0.00019178,2]
[421282672,1777335041969,-1161.17,0.00019178,2]
[421282673,1777335041978,-1901.7441,0.00019178,2]
[421282674,1777335041987,-1133.97,0.00019178,2]
[421282675,1777335041996,-500.0,0.00019178,2]
[421282676,1777335042007,-500.0,0.00019178,2]
[421282677,1777335042016,-546.89,0.00019178,2]
[421282678,1777335042026,-500.0,0.00019178,2]
[421282679,1777335042035,-500.0,0.00019178,2]
[421282680,1777335042044,-500.0,0.00019178,2]
[421282681,1777335042053,-500.0,0.00019178,2]
[421282682,1777335042062,-500.0,0.00019178,2]
[421282683,1777335042072,-500.0,0.00019178,2]
[421282684,1777335042081,-500.0,0.00019178,2]
[421282685,1777335042090,-630.59,0.00019178,2]
[421282686,1777335042100,-707.19,0.00019178,2]
[421282687,1777335042110,-500.0,0.00019178,2]
[421282688,1777335042119,-500.0,0.00019178,2]
[421282689,1777335042128,-500.0,0.00019178,2]
[421282690,1777335042138,-500.0,0.00019178,2]
[421282691,1777335042146,-500.0,0.00019178,2]
[421282692,1777335042156,-500.0,0.00019178,2]
[421282693,1777335042166,-500.0,0.00019178,2]
[421282694,1777335042175,-500.0,0.00019178,2]
[421282695,1777335042185,-500.0,0.00019178,2]
[421282696,1777335042194,-500.0,0.00019178,2]
[421282697,1777335042203,-500.0,0.00019178,2]
[421282698,1777335042213,-174.62282437,0.00019178,2]
[421282699,1777335042222,-500.0,0.00019178,2]
[421282700,1777335042232,-500.0,0.00019178,2]
[421282701,1777335042242,-500.0,0.00019178,2]
[421282702,1777335042251,-154.14444141,0.00019178,2]
[421282703,1777335042261,-500.0,0.00019178,2]
[421282704,1777335042270,-589.8,0.00019178,2]
[421282705,1777335042279,-500.0,0.00019178,2]
[421282706,1777335042288,-500.0,0.00019178,2]
[421282707,1777335042298,-500.0,0.00019178,2]
[421282708,1777335042307,-500.0,0.00019178,2]
[421282709,1777335042317,-517.42034067,0.00019178,2]
[421282710,1777335042326,-563.46,0.00019178,2]
[421282711,1777335042335,-500.0,0.00019178,2]
[421282712,1777335042344,-500.0,0.00019178,2]
[421282713,1777335042353,-500.0,0.00019178,2]
[421282714,1777335042362,-500.0,0.00019178,2]
[421282715,1777335042371,-500.0,0.00019178,2]
[421282716,1777335042381,-500.0,0.00019178,2]
[421282717,1777335042390,-500.0,0.00019178,2]
[421282718,1777335042399,-500.0,0.00019178,2]
[421282719,1777335042408,-500.0,0.00019178,2]
[421282720,1777335042418,-500.0,0.00019178,2]
[421282721,1777335042427,-500.0,0.00019178,2]
[421282722,1777335042436,-500.0,0.00019178,2]
[421282723,1777335042445,-566.51,0.00019178,2]
[421282724,1777335042455,-451.13871507,0.00019178,2]
[421282725,1777335042464,-500.0,0.00019178,2]
[421282726,1777335042474,-600.87,0.00019178,2]
[421282727,1777335042483,-500.0,0.00019178,2]
[421282728,1777335042492,-500.0,0.00019178,2]
[421282729,1777335042502,-546.21,0.00019178,2]
[421282730,1777335042511,-377.28870676,0.00019178,2]
[421282731,1777335042520,-500.0,0.00019178,2]
[421282732,1777335042530,-500.0,0.00019178,2]
[421282733,1777335042540,-500.0,0.00019178,2]
[421282734,1777335042549,-500.0,0.00019178,2]
[421282735,1777335042558,-500.0,0.00019178,2]
[421282736,1777335042568,-500.0,0.00019178,2]
[421282737,1777335042577,-544.34,0.00019178,2]
[421282738,1777335042587,-500.0,0.00019178,2]
[421282739,1777335042596,-500.0,0.00019178,2]
[421282740,1777335042606,-500.0,0.00019178,2]
[421282741,1777335042615,-552.72,0.00019178,2]
[421282742,1777335042625,-500.0,0.00019178,2]
[421282743,1777335042635,-519.97,0.00019178,2]
[421282744,1777335042644,-500.0,0.00019178,2]
[421282745,1777335042653,-500.0,0.00019178,2]
[421282746,1777335042663,-500.0,0.00019178,2]
[421282747,1777335042687,-568.26,0.00019178,2]
[421282748,1777335042912,-500.0,0.00019178,2]
[421282749,1777335042924,-648.27,0.00019178,2]
[421282750,1777335042934,-500.0,0.00019178,2]
[421282751,1777335042943,-500.0,0.00019178,2]
[421282752,1777335042953,-500.0,0.00019178,2]
[421282753,1777335042963,-500.0,0.00019178,2]
[421282754,1777335042972,-500.0,0.00019178,2]
[421282755,1777335042981,-500.0,0.00019178,2]
[421282756,1777335042990,-500.0,0.00019178,2]
[421282757,1777335042999,-500.0,0.00019178,2]
[421282758,1777335043008,-500.0,0.00019178,2]
[421282759,1777335043017,-500.0,0.00019178,2]
[421282760,1777335043027,-500.0,0.00019178,2]
[421282761,1777335043036,-500.0,0.00019178,2]
[421282762,1777335043045,-500.0,0.00019178,2]
[421282763,1777335043055,-500.0,0.00019178,2]
[421282764,1777335043064,-500.0,0.00019178,2]
[421282765,1777335043074,-500.0,0.00019178,2]
[421282766,1777335043083,-500.0,0.00019178,2]
[421282767,1777335043092,-500.0,0.00019178,2]
[421282768,1777335043102,-500.0,0.00019178,2]
[421282769,1777335043112,-500.0,0.00019178,2]
[421282770,1777335043121,-500.0,0.00019178,2]
[421282771,1777335043131,-500.0,0.00019178,2]
[421282772,1777335043140,-500.0,0.00019178,2]
[421282773,1777335043150,-500.0,0.00019178,2]
[421282774,1777335043159,-500.0,0.00019178,2]
[421282775,1777335043169,-500.0,0.00019178,2]
[421282776,1777335043178,-500.0,0.00019178,2]
[421282777,1777335043188,-500.0,0.00019178,2]
[421282778,1777335043197,-500.0,0.00019178,2]
[421282779,1777335043207,-500.0,0.00019178,2]
[421282781,1777335043216,-500.0,0.00019178,2]
[421282782,1777335043225,-500.0,0.00019178,2]
[421282784,1777335043234,-500.0,0.00019178,2]
[421282785,1777335043244,-500.0,0.00019178,2]
[421282786,1777335043253,-500.0,0.00019178,2]
[421282788,1777335043262,-500.0,0.00019178,2]
[421282789,1777335043272,-500.0,0.00019178,2]
[421282790,1777335043281,-500.0,0.00019178,2]
[421282792,1777335043290,-500.0,0.00019178,2]
[421282793,1777335043299,-500.0,0.00019178,2]
[421282794,1777335043309,-500.0,0.00019178,2]
[421282795,1777335043318,-500.0,0.00019178,2]
[421282796,1777335043327,-500.0,0.00019178,2]
[421282797,1777335043337,-500.0,0.00019178,2]
[421282798,1777335043346,-500.0,0.00019178,2]
[421282799,1777335043355,-500.0,0.00019178,2]
[421282800,1777335043365,-500.0,0.00019178,2]
[421282802,1777335043374,-500.0,0.00019178,2]
[421282803,1777335043383,-500.0,0.00019178,2]
[421282804,1777335043394,-500.0,0.00019178,2]
[421282806,1777335043403,-500.0,0.00019178,2]
[421282808,1777335043412,-500.0,0.00019178,2]
[421282810,1777335043421,-500.0,0.00019178,2]
[421282812,1777335043431,-500.0,0.00019178,2]
[421282813,1777335043440,-500.0,0.00019178,2]
[421282815,1777335043450,-498.9506907,0.00019178,2]
[421282817,1777335043459,-500.0,0.00019178,2]
[421282819,1777335043468,-500.0,0.00019178,2]
[421282821,1777335043478,-500.0,0.00019178,2]
[421282823,1777335043487,-500.0,0.00019178,2]
[421282825,1777335043497,-500.0,0.00019178,2]
[421282827,1777335043507,-500.0,0.00019178,2]
[421282829,1777335043515,-500.0,0.00019178,2]
[421282831,1777335043525,-500.0,0.00019178,2]
[421282833,1777335043533,-500.0,0.00019178,2]
[421282835,1777335043546,-500.0,0.00019178,2]
[421282837,1777335043555,-500.0,0.00019178,2]
[421282839,1777335043564,-500.0,0.00019178,2]
[421282841,1777335043573,-500.0,0.00019178,2]
[421282842,1777335043582,-500.0,0.00019178,2]
[421282844,1777335043591,-500.0,0.00019178,2]
[421282846,1777335043600,-500.0,0.00019178,2]
[421282848,1777335043609,-500.0,0.00019178,2]
[421282849,1777335043618,-500.0,0.00019178,2]
[421282850,1777335043628,-500.0,0.00019178,2]
[421282851,1777335043637,-500.0,0.00019178,2]
[421282852,1777335043647,-500.0,0.00019178,2]
[421282853,1777335043656,-500.0,0.00019178,2]
[421282854,1777335043667,-500.0,0.00019178,2]
[421282855,1777335043676,-500.0,0.00019178,2]
[421282856,1777335043685,-500.0,0.00019178,2]
[421282857,1777335043695,-500.0,0.00019178,2]
[421282858,1777335043704,-500.0,0.00019178,2]
[421282859,1777335043713,-500.0,0.00019178,2]
[421282860,1777335043725,-500.0,0.00019178,2]
[421282861,1777335043735,-500.0,0.00019178,2]
[421282862,1777335043744,-500.0,0.00019178,2]
[421282863,1777335043754,-500.0,0.00019178,2]
[421282864,1777335043763,-500.0,0.00019178,2]
[421282865,1777335043772,-585.16520731,0.00019178,2]
[421282866,1777335043781,-500.0,0.00019178,2]
[421282867,1777335043791,-500.0,0.00019178,2]
[421282868,1777335043800,-500.0,0.00019178,2]
[421282869,1777335043809,-500.0,0.00019178,2]
[421282870,1777335043819,-500.0,0.00019178,2]
[421282871,1777335043828,-500.0,0.00019178,2]
[421282872,1777335043838,-500.0,0.00019178,2]
[421282873,1777335043847,-500.0,0.00019178,2]
[421282874,1777335043856,-500.0,0.00019178,2]
[421282875,1777335043865,-500.0,0.00019178,2]
[421282876,1777335043875,-500.0,0.00019178,2]
[421282877,1777335043884,-500.0,0.00019178,2]
[421282878,1777335043894,-500.0,0.00019178,2]
[421282879,1777335043903,-500.0,0.00019178,2]
[421282880,1777335043913,-500.0,0.00019178,2]
[421282881,1777335043923,-500.0,0.00019178,2]
[421282882,1777335043932,-500.0,0.00019178,2]
[421282883,1777335043942,-500.0,0.00019178,2]
[421282884,1777335043953,-500.0,0.00019178,2]
[421282885,1777335043963,-607.90024182,0.00019178,2]
[421282886,1777335043972,-500.0,0.00019178,2]
[421282887,1777335043981,-500.0,0.00019178,2]
[421282888,1777335043991,-500.0,0.00019178,2]
[421282889,1777335044000,-500.0,0.00019178,2]
[421282890,1777335044010,-226.01719033,0.00019178,2]
[421282891,1777335044020,-350.57582638,0.00019178,2]
[421282892,1777335044029,-500.0,0.00019178,2]
[421282893,1777335044039,-500.0,0.00019178,2]
[421282894,1777335044048,-648.27,0.00019178,2]
[421282895,1777335044058,-500.0,0.00019178,2]
[421282896,1777335044067,-500.0,0.00019178,2]
[421282897,1777335044076,-500.0,0.00019178,2]
[421282898,1777335044086,-500.0,0.00019178,2]
[421282900,1777335044095,-500.0,0.00019178,2]
[421282901,1777335044104,-500.0,0.00019178,2]
[421282902,1777335044113,-500.0,0.00019178,2]
[421282903,1777335044122,-500.0,0.00019178,2]
[421282904,1777335044131,-500.0,0.00019178,2]